[Event "Early-Titled-Tuesday-Blitz-August-29-2023"]
[Site "Chess.com"]
[Date "2023.08.29"]
[Round "9"]
[White "sokidze"]
[Black "topin8"]
[Result "1-0"]
[WhiteElo "2746"]
[BlackElo "2481"]
[TimeControl "180+1"]
[EndTime "9:43:31 PDT"]
[Termination "sokidze won on time"]

1. d4 {[%clk 0:03:00.4]} 1... Nf6 {[%clk 0:02:59.8]} 2. c4 {[%clk 0:02:58.9]}
2... c5 {[%clk 0:02:59.8]} 3. d5 {[%clk 0:02:58.3]} 3... d6 {[%clk 0:03:00.3]}
4. Nc3 {[%clk 0:02:57.8]} 4... g6 {[%clk 0:03:01.2]} 5. e4 {[%clk 0:02:56]} 5...
Bg7 {[%clk 0:03:01.5]} 6. f4 {[%clk 0:02:54.1]} 6... O-O {[%clk 0:03:01.7]} 7.
Bd3 {[%clk 0:02:42]} 7... e6 {[%clk 0:03:01.5]} 8. dxe6 {[%clk 0:02:29.1]} 8...
fxe6 {[%clk 0:02:58.9]} 9. Nf3 {[%clk 0:02:27.2]} 9... Nc6 {[%clk 0:02:59]} 10.
O-O {[%clk 0:02:26.8]} 10... Nh5 {[%clk 0:02:42]} 11. Ne2 {[%clk 0:02:19.4]}
11... e5 {[%clk 0:02:35.6]} 12. f5 {[%clk 0:02:07.9]} 12... Nf6 {[%clk
0:01:58.6]} 13. Ng3 {[%clk 0:01:54.8]} 13... gxf5 {[%clk 0:00:56.1]} 14. exf5
{[%clk 0:01:53.4]} 14... Nd4 {[%clk 0:00:48.4]} 15. Bg5 {[%clk 0:01:37.8]} 15...
Qc7 {[%clk 0:00:30.2]} 16. Nxd4 {[%clk 0:01:05.6]} 16... cxd4 {[%clk 0:00:29]}
17. Nh5 {[%clk 0:01:05.6]} 17... Nxh5 {[%clk 0:00:19.8]} 18. Qxh5 {[%clk
0:01:06.5]} 18... Qf7 {[%clk 0:00:20.3]} 19. Qxf7+ {[%clk 0:00:54.9]} 19... Rxf7
{[%clk 0:00:21.2]} 20. Be4 {[%clk 0:00:55.4]} 20... h6 {[%clk 0:00:13.7]} 21.
Bh4 {[%clk 0:00:50.5]} 21... Bf6 {[%clk 0:00:13.6]} 22. Be1 {[%clk 0:00:40.3]}
22... Rc7 {[%clk 0:00:12.5]} 23. Bb4 {[%clk 0:00:39.9]} 23... Be7 {[%clk
0:00:09]} 24. f6 {[%clk 0:00:36]} 24... Bf8 {[%clk 0:00:08.9]} 25. Bd5+ {[%clk
0:00:31]} 25... Kh7 {[%clk 0:00:08.5]} 26. f7 {[%clk 0:00:25.8]} 26... Bg4
{[%clk 0:00:08.2]} 27. Rf6 {[%clk 0:00:24.9]} 27... Bh5 {[%clk 0:00:04.2]} 28.
b3 {[%clk 0:00:15.2]} 28... Bg6 {[%clk 0:00:04.2]} 29. Raf1 {[%clk 0:00:14]}
29... Be7 {[%clk 0:00:03]} 30. f8=Q {[%clk 0:00:11.4]} 30... Bxf8 {[%clk
0:00:02.8]} 31. Rxf8 {[%clk 0:00:12.3]} 31... Rxf8 {[%clk 0:00:03.5]} 32. Rxf8
{[%clk 0:00:13.2]} 32... d3 {[%clk 0:00:03.8]} 33. Kf2 {[%clk 0:00:12.6]} 33...
Rd7 {[%clk 0:00:02.3]} 34. Ke3 {[%clk 0:00:12.5]} 34... e4 {[%clk 0:00:02.8]}
35. Rf4 {[%clk 0:00:09.5]} 35... Re7 {[%clk 0:00:02.5]} 36. Bxe4 {[%clk
0:00:08.6]} 36... Bxe4 {[%clk 0:00:02.4]} 37. Rxe4 {[%clk 0:00:09.5]} 37... Rg7
{[%clk 0:00:03.3]} 38. g3 {[%clk 0:00:09.1]} 1-0

[Event "Early-Titled-Tuesday-Blitz-August-29-2023"]
[Site "Chess.com"]
[Date "2023.08.29"]
[Round "9"]
[White "Forge13"]
[Black "Gauravthegm"]
[Result "0-1"]
[WhiteElo "2627"]
[BlackElo "2429"]
[TimeControl "180+1"]
[EndTime "9:43:31 PDT"]
[Termination "Gauravthegm won by resignation"]

1. e4 {[%clk 0:03:00.9]} 1... c5 {[%clk 0:02:59.1]} 2. Be2 {[%clk 0:03:00.3]}
2... Nc6 {[%clk 0:02:58.5]} 3. f4 {[%clk 0:03:00.7]} 3... g6 {[%clk 0:02:57.7]}
4. Nf3 {[%clk 0:03:00.8]} 4... Bg7 {[%clk 0:02:57.8]} 5. O-O {[%clk 0:03:01.3]}
5... d6 {[%clk 0:02:57.4]} 6. c3 {[%clk 0:03:01.9]} 6... Nf6 {[%clk 0:02:57.2]}
7. d3 {[%clk 0:03:01.9]} 7... O-O {[%clk 0:02:56.8]} 8. Kh1 {[%clk 0:03:02.6]}
8... Rb8 {[%clk 0:02:56.3]} 9. Be3 {[%clk 0:03:02.7]} 9... b5 {[%clk 0:02:56.2]}
10. a3 {[%clk 0:03:03.4]} 10... a5 {[%clk 0:02:55.7]} 11. Nbd2 {[%clk
0:03:03.2]} 11... b4 {[%clk 0:02:53]} 12. d4 {[%clk 0:03:03.6]} 12... bxc3
{[%clk 0:02:47.4]} 13. bxc3 {[%clk 0:03:04.5]} 13... cxd4 {[%clk 0:02:45.3]} 14.
cxd4 {[%clk 0:03:05.4]} 14... Ng4 {[%clk 0:02:44.7]} 15. Bg1 {[%clk 0:03:04.6]}
15... Bd7 {[%clk 0:02:37.9]} 16. h3 {[%clk 0:02:59]} 16... Nf6 {[%clk
0:02:37.9]} 17. d5 {[%clk 0:02:59.4]} 17... Nh5 {[%clk 0:02:28.2]} 18. dxc6
{[%clk 0:02:58.5]} 18... Ng3+ {[%clk 0:02:26.8]} 19. Kh2 {[%clk 0:02:58.5]}
19... Nxf1+ {[%clk 0:02:27.3]} 20. Nxf1 {[%clk 0:02:51.9]} 20... Bxa1 {[%clk
0:02:26.7]} 21. Qxa1 {[%clk 0:02:50.8]} 21... Bxc6 {[%clk 0:02:26.6]} 22. Ng3
{[%clk 0:02:43.7]} 22... Qd7 {[%clk 0:02:21.6]} 23. f5 {[%clk 0:01:56]} 23...
Qb7 {[%clk 0:02:15.4]} 24. Qc1 {[%clk 0:01:30.3]} 24... Bxe4 {[%clk 0:02:11.2]}
25. Qh6 {[%clk 0:01:30.3]} 25... Bxf3 {[%clk 0:02:07.2]} 26. Bxf3 {[%clk
0:01:29.4]} 26... Qb2 {[%clk 0:02:02.5]} 27. fxg6 {[%clk 0:01:22.9]} 27... hxg6
{[%clk 0:01:53.7]} 28. Qh4 {[%clk 0:01:14.9]} 28... Qf6 {[%clk 0:01:50.3]} 29.
Qa4 {[%clk 0:01:07.6]} 29... Rb1 {[%clk 0:01:38.7]} 30. Qxa5 {[%clk 0:01:02]}
30... Rfb8 {[%clk 0:01:22.7]} 31. Qd5 {[%clk 0:00:38.9]} 31... Qf4 {[%clk
0:01:15.6]} 32. Qe4 {[%clk 0:00:20]} 32... Qxe4 {[%clk 0:01:06]} 33. Nxe4 {[%clk
0:00:20.9]} 33... Ra1 {[%clk 0:01:05.7]} 34. Nc3 {[%clk 0:00:13.2]} 34... Rxa3
{[%clk 0:01:04.8]} 35. Nd5 {[%clk 0:00:13.8]} 35... e6 {[%clk 0:00:53.9]} 36.
Nf6+ {[%clk 0:00:13.6]} 36... Kg7 {[%clk 0:00:53.6]} 37. Ne4 {[%clk 0:00:12.7]}
37... Ra6 {[%clk 0:00:45.4]} 38. Bd4+ {[%clk 0:00:10.3]} 38... e5 {[%clk
0:00:45.4]} 39. Bf2 {[%clk 0:00:08]} 39... f5 {[%clk 0:00:41.6]} 40. Nc3 {[%clk
0:00:05.9]} 40... e4 {[%clk 0:00:39.4]} 41. Be2 {[%clk 0:00:06.2]} 41... Rc6
{[%clk 0:00:35.6]} 42. Bd4+ {[%clk 0:00:06.1]} 42... Kf7 {[%clk 0:00:34.8]} 43.
Nd5 {[%clk 0:00:06.5]} 43... Rc2 {[%clk 0:00:32.8]} 44. Bf1 {[%clk 0:00:03.7]}
44... Rd2 {[%clk 0:00:31.5]} 45. Ba7 {[%clk 0:00:01.4]} 45... Rb7 {[%clk
0:00:29.6]} 46. Bc4 {[%clk 0:00:01.9]} 46... Rxa7 {[%clk 0:00:26.3]} 0-1

[Event "Early-Titled-Tuesday-Blitz-August-29-2023"]
[Site "Chess.com"]
[Date "2023.08.29"]
[Round "9"]
[White "HajiyevKanan"]
[Black "Xavier_mompel"]
[Result "1-0"]
[WhiteElo "2483"]
[BlackElo "2303"]
[TimeControl "180+1"]
[EndTime "9:43:31 PDT"]
[Termination "HajiyevKanan won by resignation"]

1. d4 {[%clk 0:03:00.9]} 1... d5 {[%clk 0:02:59.6]} 2. c4 {[%clk 0:03:01.8]}
2... c6 {[%clk 0:02:59.7]} 3. Nc3 {[%clk 0:03:02.7]} 3... Nf6 {[%clk 0:02:59.5]}
4. cxd5 {[%clk 0:03:03.6]} 4... cxd5 {[%clk 0:02:59.6]} 5. Bg5 {[%clk
0:03:04.1]} 5... e6 {[%clk 0:02:57.5]} 6. e3 {[%clk 0:03:04.1]} 6... Bd6 {[%clk
0:02:55.6]} 7. Bd3 {[%clk 0:03:04.2]} 7... Nc6 {[%clk 0:02:55.1]} 8. f4 {[%clk
0:03:04.4]} 8... O-O {[%clk 0:02:51.8]} 9. Nf3 {[%clk 0:03:04.5]} 9... a6 {[%clk
0:02:34.9]} 10. O-O {[%clk 0:03:03.8]} 10... b5 {[%clk 0:02:34.1]} 11. Ne5
{[%clk 0:03:03.7]} 11... Bb7 {[%clk 0:02:33.7]} 12. Rc1 {[%clk 0:03:02.8]} 12...
Rc8 {[%clk 0:02:32.4]} 13. a3 {[%clk 0:03:01.8]} 13... Be7 {[%clk 0:02:27.6]}
14. Qc2 {[%clk 0:03:00.4]} 14... h6 {[%clk 0:02:02.4]} 15. Bh4 {[%clk
0:03:00.3]} 15... Nxe5 {[%clk 0:01:55.7]} 16. fxe5 {[%clk 0:03:00.5]} 16... Ng4
{[%clk 0:01:49.2]} 17. Bxe7 {[%clk 0:03:00.5]} 17... Qxe7 {[%clk 0:01:49.8]} 18.
Qe2 {[%clk 0:03:00.3]} 18... Qg5 {[%clk 0:01:49.4]} 19. Rf4 {[%clk 0:02:59.4]}
19... h5 {[%clk 0:01:47.3]} 20. Rcf1 {[%clk 0:02:55]} 20... f6 {[%clk
0:01:38.6]} 21. h3 {[%clk 0:02:46.6]} 21... Nh6 {[%clk 0:01:35.6]} 22. exf6
{[%clk 0:02:47.2]} 22... Rxf6 {[%clk 0:01:35]} 23. Rxf6 {[%clk 0:02:47.3]} 23...
gxf6 {[%clk 0:01:35.9]} 24. Qf3 {[%clk 0:02:45.8]} 24... Rf8 {[%clk 0:01:28.4]}
25. Ne2 {[%clk 0:02:45]} 25... e5 {[%clk 0:01:14.4]} 26. dxe5 {[%clk 0:02:41.3]}
26... d4 {[%clk 0:01:10.2]} 27. Bh7+ {[%clk 0:02:15.3]} 27... Kxh7 {[%clk
0:01:04.2]} 28. Qxb7+ {[%clk 0:02:15.3]} 28... Rf7 {[%clk 0:01:03.8]} 29. Qe4+
{[%clk 0:02:15.3]} 29... f5 {[%clk 0:00:56.1]} 30. Qxd4 {[%clk 0:02:15.5]} 30...
Rg7 {[%clk 0:00:50.1]} 31. Nf4 {[%clk 0:02:13.8]} 31... Re7 {[%clk 0:00:21.8]}
32. e6 {[%clk 0:02:08.7]} 32... Ng8 {[%clk 0:00:21.3]} 33. Qd6 {[%clk
0:02:01.9]} 33... Rg7 {[%clk 0:00:17]} 34. Qxa6 {[%clk 0:01:57.6]} 34... Nf6
{[%clk 0:00:14.5]} 35. Qxb5 {[%clk 0:01:52.1]} 35... Ne4 {[%clk 0:00:10.7]} 36.
Qe5 {[%clk 0:01:41.8]} 36... Ng3 {[%clk 0:00:05.9]} 37. Re1 {[%clk 0:01:37.5]}
37... Ne4 {[%clk 0:00:04.3]} 38. a4 {[%clk 0:01:31.1]} 38... h4 {[%clk
0:00:03.5]} 39. a5 {[%clk 0:01:30.7]} 39... Qg3 {[%clk 0:00:02.2]} 40. Qxf5+
{[%clk 0:01:28.3]} 40... Kh8 {[%clk 0:00:02.2]} 41. Re2 {[%clk 0:00:36.4]} 41...
Ng5 {[%clk 0:00:02.5]} 42. Qg4 {[%clk 0:00:27.5]} 42... Nf3+ {[%clk 0:00:02.2]}
43. Qxf3 {[%clk 0:00:20]} 43... Qxf3 {[%clk 0:00:02.2]} 44. e7 {[%clk
0:00:20.7]} 44... Qg3 {[%clk 0:00:02.1]} 45. e8=Q+ {[%clk 0:00:19.8]} 45... Kh7
{[%clk 0:00:02.7]} 46. Qh5+ {[%clk 0:00:19.9]} 46... Kg8 {[%clk 0:00:02.7]} 47.
Qd5+ {[%clk 0:00:19.4]} 47... Kh8 {[%clk 0:00:02.2]} 48. a6 {[%clk 0:00:20]}
48... Qg5 {[%clk 0:00:01.9]} 49. Qxg5 {[%clk 0:00:19.9]} 49... Rxg5 {[%clk
0:00:02.8]} 1-0

[Event "Early-Titled-Tuesday-Blitz-August-29-2023"]
[Site "Chess.com"]
[Date "2023.08.29"]
[Round "9"]
[White "LiamPutnam2008"]
[Black "abhidabhi"]
[Result "1-0"]
[WhiteElo "2821"]
[BlackElo "2892"]
[TimeControl "180+1"]
[EndTime "9:43:32 PDT"]
[Termination "LiamPutnam2008 won by resignation"]

1. e4 {[%clk 0:02:14.1]} 1... e6 {[%clk 0:02:57.2]} 2. d4 {[%clk 0:01:42]} 2...
d5 {[%clk 0:02:57.1]} 3. Nc3 {[%clk 0:01:39.3]} 3... Bb4 {[%clk 0:02:56.2]} 4.
e5 {[%clk 0:01:38.8]} 4... c5 {[%clk 0:02:55.9]} 5. a3 {[%clk 0:01:37.9]} 5...
Bxc3+ {[%clk 0:02:56.3]} 6. bxc3 {[%clk 0:01:38.8]} 6... Ne7 {[%clk 0:02:56.1]}
7. Qg4 {[%clk 0:01:38.2]} 7... Qc7 {[%clk 0:02:56.2]} 8. Qxg7 {[%clk 0:01:36.9]}
8... Rg8 {[%clk 0:02:56.1]} 9. Qxh7 {[%clk 0:01:37.1]} 9... cxd4 {[%clk
0:02:56.8]} 10. Ne2 {[%clk 0:01:37.3]} 10... Nbc6 {[%clk 0:02:57.2]} 11. f4
{[%clk 0:01:35.5]} 11... dxc3 {[%clk 0:02:56.9]} 12. Qd3 {[%clk 0:01:36.2]}
12... d4 {[%clk 0:02:54.3]} 13. Nxd4 {[%clk 0:01:34.9]} 13... Nxd4 {[%clk
0:02:54.6]} 14. Qxd4 {[%clk 0:01:35.8]} 14... Nf5 {[%clk 0:02:53]} 15. Qf2
{[%clk 0:01:35.4]} 15... Qc6 {[%clk 0:02:52.7]} 16. Rg1 {[%clk 0:01:34]} 16...
Qe4+ {[%clk 0:02:49.3]} 17. Qe2 {[%clk 0:01:27]} 17... Qd4 {[%clk 0:02:49.6]}
18. Qf2 {[%clk 0:01:26]} 18... Qa4 {[%clk 0:02:46.1]} 19. Rb1 {[%clk 0:01:23.5]}
19... Bd7 {[%clk 0:02:36.4]} 20. Rb4 {[%clk 0:01:11.8]} 20... Qc6 {[%clk
0:02:31.4]} 21. g4 {[%clk 0:01:09.1]} 21... Ne7 {[%clk 0:02:31.6]} 22. Rc4
{[%clk 0:00:54.6]} 22... Qd5 {[%clk 0:02:25.5]} 23. Rxc3 {[%clk 0:00:53.9]}
23... Bc6 {[%clk 0:02:19.5]} 24. Bg2 {[%clk 0:00:50.4]} 24... Qa5 {[%clk
0:02:17.9]} 25. Bd2 {[%clk 0:00:50.5]} 25... Qa4 {[%clk 0:02:17.5]} 26. Bxc6+
{[%clk 0:00:47.2]} 26... Nxc6 {[%clk 0:02:16.9]} 27. Qc5 {[%clk 0:00:40.7]}
27... O-O-O {[%clk 0:01:44.8]} 28. Qc4 {[%clk 0:00:39.7]} 28... Rd4 {[%clk
0:01:34.3]} 29. Qxa4 {[%clk 0:00:39.6]} 29... Rxa4 {[%clk 0:01:35.2]} 30. Kf2
{[%clk 0:00:38.3]} 30... Kd7 {[%clk 0:01:33]} 31. Be3 {[%clk 0:00:38.3]} 31...
Ne7 {[%clk 0:01:33.2]} 32. Rd3+ {[%clk 0:00:35]} 32... Nd5 {[%clk 0:01:33]} 33.
Rb1 {[%clk 0:00:34.2]} 33... b6 {[%clk 0:01:30.4]} 34. Rb4 {[%clk 0:00:32.7]}
34... Rxb4 {[%clk 0:01:28.2]} 35. axb4 {[%clk 0:00:33.6]} 35... Kc6 {[%clk
0:01:28.5]} 36. g5 {[%clk 0:00:19.7]} 36... Nxb4 {[%clk 0:01:26.9]} 37. Rc3+
{[%clk 0:00:20.3]} 37... Kd7 {[%clk 0:01:25]} 38. h4 {[%clk 0:00:20.6]} 38...
Nd5 {[%clk 0:01:24.9]} 39. Rd3 {[%clk 0:00:21]} 39... Kc6 {[%clk 0:01:22.2]} 40.
c4 {[%clk 0:00:20.2]} 40... Ne7 {[%clk 0:01:21]} 41. Rd6+ {[%clk 0:00:20.1]}
41... Kc7 {[%clk 0:01:21]} 42. h5 {[%clk 0:00:20.9]} 42... Nf5 {[%clk
0:01:21.4]} 43. Rd3 {[%clk 0:00:21.4]} 43... Kc6 {[%clk 0:01:02]} 44. h6 {[%clk
0:00:20]} 44... a6 {[%clk 0:00:56.2]} 45. Rb3 {[%clk 0:00:19.3]} 45... b5 {[%clk
0:00:56.5]} 46. cxb5+ {[%clk 0:00:20]} 46... axb5 {[%clk 0:00:57.4]} 47. Rc3+
{[%clk 0:00:20.7]} 47... Kd7 {[%clk 0:00:55.5]} 48. Rc5 {[%clk 0:00:20.6]} 48...
Rb8 {[%clk 0:00:55.4]} 49. h7 {[%clk 0:00:20.7]} 49... b4 {[%clk 0:00:55.4]} 50.
Rb5 {[%clk 0:00:18.9]} 50... Rh8 {[%clk 0:00:54.3]} 51. Rb7+ {[%clk 0:00:11.6]}
51... Kc6 {[%clk 0:00:53]} 52. Rxf7 {[%clk 0:00:11.5]} 52... b3 {[%clk
0:00:53.5]} 53. Bc1 {[%clk 0:00:12]} 53... Nh4 {[%clk 0:00:44.2]} 54. Kg3 {[%clk
0:00:09.5]} 54... Ng6 {[%clk 0:00:44.2]} 55. Rf6 {[%clk 0:00:09.2]} 55... Nf8
{[%clk 0:00:44.6]} 56. Rxf8 {[%clk 0:00:09.1]} 56... Rxf8 {[%clk 0:00:44.3]} 57.
g6 {[%clk 0:00:09.8]} 57... Kd5 {[%clk 0:00:44.8]} 58. g7 {[%clk 0:00:10.2]}
58... Rc8 {[%clk 0:00:45]} 59. g8=Q {[%clk 0:00:10]} 59... Rxc1 {[%clk
0:00:45.5]} 60. Qd8+ {[%clk 0:00:10.6]} 60... Ke4 {[%clk 0:00:45.6]} 61. h8=Q
{[%clk 0:00:10]} 61... b2 {[%clk 0:00:44.2]} 62. Qh7+ {[%clk 0:00:10.3]} 1-0

[Event "Early-Titled-Tuesday-Blitz-August-29-2023"]
[Site "Chess.com"]
[Date "2023.08.29"]
[Round "9"]
[White "WhiteKnight2612"]
[Black "bascheyaro"]
[Result "1-0"]
[WhiteElo "2840"]
[BlackElo "2803"]
[TimeControl "180+1"]
[EndTime "9:43:32 PDT"]
[Termination "WhiteKnight2612 won by checkmate"]

1. Nf3 {[%clk 0:03:00.9]} 1... d5 {[%clk 0:02:51.6]} 2. g3 {[%clk 0:03:00.3]}
2... Nf6 {[%clk 0:02:51.7]} 3. Bg2 {[%clk 0:03:01]} 3... Bf5 {[%clk 0:02:52]} 4.
O-O {[%clk 0:03:01.4]} 4... e6 {[%clk 0:02:52.3]} 5. d3 {[%clk 0:03:01.4]} 5...
Be7 {[%clk 0:02:52.3]} 6. Nbd2 {[%clk 0:03:01.6]} 6... O-O {[%clk 0:02:52.3]} 7.
Nh4 {[%clk 0:02:58]} 7... Bg4 {[%clk 0:02:52.1]} 8. h3 {[%clk 0:02:58.6]} 8...
Bh5 {[%clk 0:02:52.3]} 9. g4 {[%clk 0:02:58.8]} 9... Nfd7 {[%clk 0:02:52.2]} 10.
Nhf3 {[%clk 0:02:55.6]} 10... Bg6 {[%clk 0:02:52.5]} 11. e4 {[%clk 0:02:56.2]}
11... c6 {[%clk 0:02:52.6]} 12. Re1 {[%clk 0:02:55]} 12... h5 {[%clk 0:02:49.1]}
13. Nf1 {[%clk 0:02:49.8]} 13... hxg4 {[%clk 0:02:48.9]} 14. hxg4 {[%clk
0:02:49.9]} 14... dxe4 {[%clk 0:02:48]} 15. dxe4 {[%clk 0:02:47]} 15... Nf6
{[%clk 0:02:40.1]} 16. Qxd8 {[%clk 0:02:44.7]} 16... Rxd8 {[%clk 0:02:39.6]} 17.
Ne5 {[%clk 0:02:45]} 17... Bh7 {[%clk 0:02:39]} 18. Ng3 {[%clk 0:02:27.5]} 18...
Nbd7 {[%clk 0:02:37.2]} 19. Nxd7 {[%clk 0:02:27.2]} 19... Nxd7 {[%clk
0:02:37.2]} 20. g5 {[%clk 0:02:13.6]} 20... Ne5 {[%clk 0:02:32.6]} 21. f4 {[%clk
0:02:12.4]} 21... Bc5+ {[%clk 0:02:22.2]} 22. Be3 {[%clk 0:02:06.2]} 22... Bxe3+
{[%clk 0:02:17]} 23. Rxe3 {[%clk 0:02:07.1]} 23... Nc4 {[%clk 0:02:16.9]} 24.
Re2 {[%clk 0:01:59.6]} 24... Nxb2 {[%clk 0:02:14.3]} 25. Rb1 {[%clk 0:01:59.2]}
25... Rd1+ {[%clk 0:02:14.5]} 26. Rxd1 {[%clk 0:01:53.5]} 26... Nxd1 {[%clk
0:02:15.4]} 27. f5 {[%clk 0:01:52]} 27... Nc3 {[%clk 0:02:14.6]} 28. Re3 {[%clk
0:01:51.4]} 28... Nxa2 {[%clk 0:02:14.2]} 29. Bf1 {[%clk 0:01:47.5]} 29... b5
{[%clk 0:02:07.8]} 30. Ra3 {[%clk 0:01:43.8]} 30... Nb4 {[%clk 0:02:05.2]} 31.
c3 {[%clk 0:01:44.4]} 31... Nc2 {[%clk 0:02:05.5]} 32. Ra6 {[%clk 0:01:44.5]}
32... exf5 {[%clk 0:01:59.6]} 33. exf5 {[%clk 0:01:40.6]} 33... Ne3 {[%clk
0:01:59]} 34. Bd3 {[%clk 0:01:36.8]} 34... Rc8 {[%clk 0:01:42.5]} 35. Rxa7
{[%clk 0:01:29.7]} 35... Kf8 {[%clk 0:01:38.6]} 36. g6 {[%clk 0:01:07.2]} 36...
fxg6 {[%clk 0:01:38.4]} 37. fxg6 {[%clk 0:01:07.1]} 37... Bg8 {[%clk 0:01:38.9]}
38. Nh5 {[%clk 0:01:06.8]} 38... Rd8 {[%clk 0:01:29.4]} 39. Be4 {[%clk
0:01:04.2]} 39... Nd5 {[%clk 0:01:11.3]} 40. Nxg7 {[%clk 0:01:01.8]} 40... Nxc3
{[%clk 0:01:10.2]} 41. Bc2 {[%clk 0:00:47.5]} 41... Ne2+ {[%clk 0:01:02.3]} 42.
Kf2 {[%clk 0:00:46.9]} 42... Nd4 {[%clk 0:00:56.8]} 43. Nh5 {[%clk 0:00:38.2]}
43... Ne6 {[%clk 0:00:40.8]} 44. Bf5 {[%clk 0:00:32.8]} 44... b4 {[%clk
0:00:04]} 45. Bxe6 {[%clk 0:00:20.5]} 45... Bxe6 {[%clk 0:00:02.1]} 46. g7+
{[%clk 0:00:21]} 46... Kg8 {[%clk 0:00:02.7]} 47. Nf6# {[%clk 0:00:21.2]} 1-0

[Event "Early-Titled-Tuesday-Blitz-August-29-2023"]
[Site "Chess.com"]
[Date "2023.08.29"]
[Round "9"]
[White "Chessbard1972"]
[Black "albi1999"]
[Result "0-1"]
[WhiteElo "2557"]
[BlackElo "2680"]
[TimeControl "180+1"]
[EndTime "9:43:37 PDT"]
[Termination "albi1999 won on time"]

1. d4 {[%clk 0:03:00.9]} 1... Nf6 {[%clk 0:02:58.6]} 2. c4 {[%clk 0:02:59.8]}
2... e6 {[%clk 0:02:59.2]} 3. Nf3 {[%clk 0:02:58.1]} 3... c5 {[%clk 0:02:58.1]}
4. d5 {[%clk 0:02:57.5]} 4... exd5 {[%clk 0:02:57.3]} 5. cxd5 {[%clk 0:02:57.3]}
5... d6 {[%clk 0:02:58]} 6. Nc3 {[%clk 0:02:57.6]} 6... g6 {[%clk 0:02:57.5]} 7.
Nd2 {[%clk 0:02:58.1]} 7... Bg7 {[%clk 0:02:56.2]} 8. Nc4 {[%clk 0:02:58.1]}
8... O-O {[%clk 0:02:51.8]} 9. Bf4 {[%clk 0:02:57.4]} 9... Nbd7 {[%clk
0:02:40.8]} 10. Bxd6 {[%clk 0:02:54.2]} 10... Re8 {[%clk 0:02:40.2]} 11. e3
{[%clk 0:02:50.8]} 11... Nb6 {[%clk 0:02:31.8]} 12. Bxc5 {[%clk 0:02:47.2]}
12... Nbxd5 {[%clk 0:02:27.2]} 13. Bd4 {[%clk 0:02:42.4]} 13... Be6 {[%clk
0:02:18.5]} 14. Be2 {[%clk 0:02:35.8]} 14... Rc8 {[%clk 0:02:11]} 15. Ne5 {[%clk
0:02:26.4]} 15... Nxc3 {[%clk 0:02:07]} 16. Bxc3 {[%clk 0:02:24.6]} 16... Nd5
{[%clk 0:01:26.9]} 17. Bd4 {[%clk 0:02:13.9]} 17... Qa5+ {[%clk 0:00:55.7]} 18.
Qd2 {[%clk 0:02:11.4]} 18... Nb4 {[%clk 0:00:55.3]} 19. O-O {[%clk 0:01:32]}
19... Rc2 {[%clk 0:00:53.9]} 20. Qd1 {[%clk 0:01:07.9]} 20... Bxe5 {[%clk
0:00:52.4]} 21. a3 {[%clk 0:01:01.8]} 21... Bxd4 {[%clk 0:00:19.8]} 22. axb4
{[%clk 0:00:58.8]} 22... Qc7 {[%clk 0:00:14.6]} 23. exd4 {[%clk 0:00:44.3]}
23... Rxb2 {[%clk 0:00:15]} 24. Bf3 {[%clk 0:00:39.3]} 24... Rxb4 {[%clk
0:00:12]} 25. Rxa7 {[%clk 0:00:38.6]} 25... Rd8 {[%clk 0:00:11.3]} 26. d5 {[%clk
0:00:34.3]} 26... Qb6 {[%clk 0:00:08.9]} 27. Ra2 {[%clk 0:00:28.7]} 27... Rd4
{[%clk 0:00:09.4]} 28. Rd2 {[%clk 0:00:27.9]} 28... Rxd2 {[%clk 0:00:09.1]} 29.
Qxd2 {[%clk 0:00:28.1]} 29... Bf5 {[%clk 0:00:09]} 30. h3 {[%clk 0:00:24.6]}
30... h5 {[%clk 0:00:08.5]} 31. Re1 {[%clk 0:00:23]} 31... Qc5 {[%clk
0:00:07.7]} 32. Qg5 {[%clk 0:00:20.2]} 32... Qd6 {[%clk 0:00:05.7]} 33. g4
{[%clk 0:00:06.4]} 33... hxg4 {[%clk 0:00:05.8]} 34. hxg4 {[%clk 0:00:05.9]}
34... Bc8 {[%clk 0:00:05.5]} 35. Kg2 {[%clk 0:00:05.8]} 35... Kg7 {[%clk
0:00:05.7]} 36. Rh1 {[%clk 0:00:05.2]} 36... Rh8 {[%clk 0:00:06.2]} 37. Rxh8
{[%clk 0:00:04.3]} 37... Kxh8 {[%clk 0:00:07.1]} 38. Qh6+ {[%clk 0:00:04.1]}
38... Kg8 {[%clk 0:00:07.3]} 39. Qe3 {[%clk 0:00:03.3]} 39... Bd7 {[%clk
0:00:06.7]} 40. Qd4 {[%clk 0:00:03.2]} 40... b5 {[%clk 0:00:06.1]} 41. g5 {[%clk
0:00:02.6]} 41... b4 {[%clk 0:00:05.6]} 42. Qc4 {[%clk 0:00:02.4]} 42... Qe5
{[%clk 0:00:04.4]} 43. Qxb4 {[%clk 0:00:01.6]} 43... Qxg5+ {[%clk 0:00:04.5]}
44. Kf1 {[%clk 0:00:01.4]} 44... Qf5 {[%clk 0:00:03.1]} 0-1